bitfinex/quotes_ETHUSD_20250625
["timestamp","ask_amount","ask_price","bid_price","bid_amount"]
[1750858870232,0.2056,2430.0,2429.6,4.32140026]
[1750858870233,19.8173,2430.5,2429.9,4.11539569]
[1750858870448,0.2056,2430.3,2429.8,0.9762]
[1750858870635,0.2056,2430.1,2429.7,0.2056]
[1750858870835,0.8183,2430.0,2429.3,1.986]
[1750858871020,0.2056,2430.0,2429.7,4.11570841]
[1750858871228,0.2056,2430.0,2429.9,4.11539569]
[1750858871427,0.2056,2430.0,2429.7,0.2056]
[1750858871805,0.8183,2430.6,2429.8,0.7706]
[1750858872010,9.116,2431.0,2430.5,4.11437975]
[1750858872210,10.0,2430.9,2430.7,4.11397103]
[1750858872410,1.99343,2430.9,2430.7,4.11398319]
[1750858872709,0.2056,2430.8,2430.6,4.11415172]
[1750858872907,0.2056,2430.8,2430.3,0.2056]
[1750858873103,0.2056,2430.8,2430.7,4.11404122]
[1750858873333,0.2056,2430.8,2430.6,4.11419195]
[1750858873632,0.2056,2430.8,2430.7,4.11404122]
[1750858874035,0.2056,2430.9,2430.8,4.11378316]
[1750858874257,0.2056,2430.9,2430.5,0.2056]
[1750858874460,0.8183,2431.1,2429.4,13.79249889]
[1750858874461,0.7754,2430.7,2430.0,4.11521467]
[1750858874758,0.48893724,2430.6,2430.0,4.11511166]
[1750858875060,0.2056,2430.2,2429.8,4.32116506]
[1750858875257,0.2056,2430.2,2430.1,4.11505699]
[1750858875473,0.2056,2430.8,2430.6,4.11421048]
[1750858875677,0.2056,2430.8,2430.7,4.11404122]
[1750858876227,0.2056,2430.8,2430.6,4.11412877]
[1750858876429,0.2056,2430.8,2430.5,4.1143381]
[1750858876650,1.3227,2431.0,2429.8,0.7805]
[1750858876959,9.12,2431.1,2429.8,0.7805]
[1750858876960,0.2056,2430.5,2430.1,4.11505665]
[1750858877758,4.9072227,2430.3,2429.8,4.115487]
[1750858877943,4.9072227,2430.3,2429.7,4.11566077]
[1750858877944,0.2056,2430.0,2429.7,4.11566077]
[1750858878145,0.2056,2430.0,2429.6,0.2056]
[1750858878457,0.2056,2430.0,2429.9,4.11539569]
[1750858878965,0.2056,2430.3,2430.1,4.11504305]
[1750858879180,1.87527,2430.9,2430.1,0.7815]
[1750858879339,0.831,2430.9,2430.1,0.7815]
[1750858879737,0.831,2430.9,2430.5,4.11427213]
[1750858880937,0.831,2430.9,2430.7,4.11398869]
[1750858881143,0.831,2430.9,2430.4,4.11454904]
[1750858881380,0.831,2430.9,2430.8,4.11387197]
[1750858881678,0.831,2430.9,2430.1,0.7815]
[1750858881679,1.8266,2430.9,2430.1,0.7815]
[1750858881889,1.8266,2430.9,2430.6,4.11409551]
[1750858882668,1.8266,2430.9,2430.7,4.11402754]
[1750858882869,1.8266,2430.9,2430.5,4.11426102]
[1750858883070,1.8266,2430.9,2430.2,4.11488766]
[1750858883294,2.09516,2430.8,2430.7,4.11395395]
[1750858883468,0.9956,2430.9,2430.8,4.11387197]
[1750858883786,10.0,2431.3,2430.1,4.89654437]
[1750858883787,0.55,2431.1,2430.3,4.11465162]
[1750858883990,10.55,2431.1,2430.6,4.11411296]
[1750858884286,10.55,2431.1,2430.7,4.11402183]
[1750858884493,10.55,2431.1,2429.9,14.11537811]
[1750858884494,0.7643,2431.0,2429.4,0.7646]
[1750858884668,0.7643,2430.2,2429.2,4.11655082]
[1750858884869,9.112,2430.1,2429.6,4.11578976]
[1750858885072,9.14,2430.1,2429.8,4.11556266]
[1750858885266,9.14,2430.1,2429.7,4.11569206]
[1750858885513,5.51699081,2430.1,2429.6,4.11582341]
[1750858885788,1.40191891,2430.1,2429.6,4.11583146]
[1750858885971,1.40191891,2430.1,2429.7,4.11564251]
[1750858886489,0.7643,2430.2,2429.5,4.87367326]
[1750858886677,0.7643,2430.2,2429.9,4.11531513]
[1750858886880,0.7643,2430.2,2429.8,4.11544296]
[1750858888700,0.7643,2430.2,2429.8,4.1154836]
[1750858888898,0.7643,2430.2,2429.5,0.7576]
[1750858889063,0.7643,2430.2,2430.0,4.11510525]
[1750858889268,0.2056,2430.3,2430.0,4.1150744]
[1750858889700,0.2056,2430.3,2429.9,4.11535583]
[1750858889890,4.66480569,2430.3,2429.6,4.11574555]
[1750858890092,0.2056,2430.1,2429.8,4.11547085]
[1750858890279,0.2056,2430.1,2429.6,0.2056]
[1750858890683,0.2056,2430.1,2429.8,4.11544292]
[1750858890878,0.2056,2430.1,2429.9,4.11539569]
[1750858891081,0.2056,2430.1,2429.7,4.11558444]
[1750858891274,0.2056,2430.1,2429.8,4.11554038]
[1750858891598,0.2056,2430.1,2429.9,4.115382]
[1750858891805,0.2056,2430.1,2430.0,4.11522633]
[1750858892206,0.7549,2430.4,2429.8,0.7644]
[1750858892406,0.9605,2430.4,2430.2,4.11475]
[1750858892596,2.74909,2430.4,2430.2,4.11475]
[1750858892796,2.74909,2430.4,2430.3,4.11471834]
[1750858893123,0.55,2430.3,2429.9,4.11535444]
[1750858893408,0.2056,2430.1,2430.0,4.11522633]
[1750858894177,0.7549,2430.4,2430.2,4.11476471]
[1750858894410,0.2056,2430.3,2430.2,4.11476471]
[1750858895503,4.11354281,2431.0,2430.9,4.11370274]
[1750858895504,0.2056,2431.0,2430.9,4.11370274]
[1750858895906,0.8263,2431.3,2431.2,4.11319512]
[1750858896312,9.135,2431.6,2431.2,4.11319512]
[1750858896609,0.2056,2431.4,2430.6,0.7555]
[1750858896776,0.9135,2431.5,2430.9,4.11358318]
[1750858896777,0.2056,2431.3,2430.9,4.11358318]
[1750858897206,0.2056,2431.3,2430.8,0.2056]
[1750858897405,0.2056,2431.3,2430.7,4.11397461]
[1750858897406,0.2056,2431.1,2430.6,0.2056]
[1750858897613,0.2056,2430.7,2430.3,0.2056]
[1750858897812,0.2056,2430.7,2430.4,4.11444732]
[1750858897981,0.2056,2430.7,2430.5,4.11437499]
[1750858898406,12.01453513,2431.0,2430.0,0.8135]
[1750858898407,0.55,2430.9,2430.0,0.8135]
[1750858898618,0.55,2430.7,2430.3,4.11468082]
[1750858898781,0.2056,2430.6,2430.3,4.11469998]
[1750858898983,0.2056,2430.6,2430.2,4.1147521]
[1750858899199,0.2056,2430.6,2430.4,4.11454172]
[1750858899614,0.2056,2430.6,2430.3,4.11462927]
[1750858900027,0.2056,2430.6,2430.2,4.11487332]
[1750858900225,0.2056,2430.6,2430.1,0.2056]
[1750858900412,17.128,2430.9,2430.5,4.11437975]
[1750858900725,0.2056,2430.8,2430.5,4.11437975]
[1750858900923,0.2056,2430.8,2430.4,0.2056]
[1750858901124,0.2056,2430.8,2430.2,4.11482366]
[1750858901125,0.2056,2430.6,2430.5,4.1143669]
[1750858901628,0.2056,2430.6,2430.4,4.11447845]
[1750858902028,0.2056,2430.6,2430.5,4.11437975]
[1750858902324,0.772,2431.0,2430.8,4.11374782]
[1750858902524,0.2056,2431.0,2430.9,4.11370274]
[1750858902919,9.131,2431.2,2431.0,4.11349805]
[1750858903095,9.131,2431.2,2430.8,0.2056]
[1750858903096,2.20013,2431.2,2430.8,0.2056]
[1750858903297,13.99178709,2432.2,2430.9,4.11370274]
[1750858903298,0.7784,2431.6,2430.9,4.11370274]
[1750858903499,0.7784,2431.6,2431.3,4.11292908]
[1750858903500,0.2056,2431.4,2431.3,4.11292908]
[1750858903826,0.2056,2431.4,2431.0,0.2056]
[1750858904009,0.2056,2431.4,2431.1,4.11329241]
[1750858904213,0.2056,2431.4,2431.0,4.31907439]
[1750858904410,0.2056,2431.4,2430.8,4.11377476]
[1750858904411,4.11304055,2431.3,2430.8,4.11377476]
[1750858904608,4.11304055,2431.3,2430.6,0.8265]
[1750858904609,0.55,2431.3,2430.6,0.8265]
[1750858904800,0.55,2431.3,2430.9,4.11354944]
[1750858905129,0.55,2431.3,2431.0,4.11349803]
[1750858905330,1.06724565,2431.3,2431.0,4.11349803]
[1750858905826,1.06724565,2431.3,2430.6,0.8265]
[1750858906030,4.9170845,2431.2,2430.4,10.0]
[1750858906344,4.66357827,2431.0,2430.3,4.11463064]
[1750858906546,0.55,2430.6,2430.2,4.11481182]
[1750858906905,0.55,2430.7,2430.3,4.11470829]
[1750858907106,1.09221787,2430.7,2430.3,4.11470829]
[1750858907514,1.09221787,2430.7,2429.7,0.7886]
[1750858907747,0.55,2430.2,2429.7,4.11563775]
[1750858908202,0.55,2430.4,2429.4,0.8213]
[1750858908401,0.55,2430.2,2429.6,4.11585615]
[1750858908609,0.55,2430.2,2429.5,4.1159382]
[1750858908852,5.49462719,2430.1,2429.4,4.93751619]
[1750858909051,1.3216,2430.0,2429.0,2.8253]
[1750858909364,1.3216,2430.0,2429.6,4.11581455]
[1750858909647,1.3216,2430.0,2429.0,6.94216542]
[1750858909648,1.3216,2430.0,2429.7,4.11558781]
[1750858909950,0.7716,2430.0,2429.2,4.11658159]
[1750858910101,0.55,2430.3,2429.5,4.11607326]
[1750858910298,14.11492148,2430.2,2429.6,4.11575375]
[1750858910533,14.11492148,2430.2,2429.7,4.11569206]
[1750858910708,0.55,2430.0,2429.3,0.8213]
[1750858910909,0.55,2430.0,2429.5,4.11598861]
[1750858911317,4.66525434,2430.0,2429.5,4.11598861]
[1750858911505,4.66525434,2430.0,2429.4,4.1161709]
[1750858911895,0.55,2430.0,2429.3,4.93763894]
[1750858912001,0.55,2429.8,2429.2,4.11655162]
[1750858912202,0.55,2429.7,2428.9,4.11697137]
[1750858912408,4.11634182,2429.4,2428.9,4.11697137]
[1750858912947,0.55,2429.5,2428.9,4.11697137]
[1750858913109,1.14875039,2429.5,2428.9,4.11709004]
[1750858913435,4.66607409,2429.5,2429.0,4.11685218]
[1750858913638,4.66607409,2429.5,2429.1,4.11673195]
[1750858913639,0.55,2429.5,2429.1,4.11673195]
[1750858914136,0.55,2429.5,2429.0,4.11683232]
[1750858914439,0.55,2429.5,2429.1,4.11669576]
[1750858914639,0.2056,2429.2,2429.1,4.11669576]
[1750858914840,0.2056,2429.2,2428.8,0.2056]
[1750858915147,0.2056,2429.2,2429.1,4.11675106]
[1750858915349,0.2056,2429.2,2429.0,4.1169057]
[1750858915514,0.2056,2429.2,2428.8,4.3227421]
[1750858915515,0.2056,2429.2,2428.8,0.2056]
[1750858915844,0.2056,2428.9,2428.5,4.11775923]
[1750858916046,0.2056,2428.9,2428.7,4.11731577]
[1750858916210,0.2056,2428.9,2428.4,0.2056]
[1750858916821,0.2056,2428.9,2428.7,4.11741948]
[1750858917037,0.2056,2428.9,2428.6,4.11751661]
[1750858917249,0.2056,2428.9,2428.6,4.11759056]
[1750858917621,0.2056,2428.9,2428.5,4.11768164]
[1750858917853,0.2056,2428.9,2428.6,4.11751603]
[1750858918163,0.2056,2428.9,2428.7,4.11742696]
[1750858918356,0.2056,2428.9,2428.6,4.11751057]
[1750858919740,0.2056,2428.9,2428.5,4.11776011]
[1750858919741,0.2056,2428.9,2428.7,4.11740981]
[1750858919942,0.2056,2428.9,2428.6,4.11751424]
[1750858920148,0.2056,2428.9,2428.7,4.11742478]
[1750858920557,0.2056,2428.9,2428.6,4.11751294]
[1750858920763,0.2056,2428.9,2428.4,0.2056]
[1750858920978,0.2056,2428.9,2428.4,4.32337154]
[1750858921178,0.2056,2428.9,2428.6,4.1175902]
[1750858921567,0.2056,2428.9,2428.6,4.1175846]
[1750858921869,0.2056,2428.9,2428.4,4.32337154]
[1750858921870,0.2056,2428.9,2428.8,4.11725955]
[1750858922077,10.0,2429.8,2428.8,4.94095955]
[1750858922078,0.8023,2429.7,2428.8,4.94095955]
[1750858922239,4.11647586,2429.3,2428.8,4.32276466]
[1750858922435,0.8175,2429.2,2428.8,4.11716466]
[1750858922639,0.2056,2429.0,2428.8,4.11716466]
[1750858922880,0.2056,2429.0,2428.9,4.11709004]
[1750858923238,0.8175,2429.6,2428.5,0.7657]
[1750858923439,0.2056,2429.5,2429.4,4.11613827]
[1750858923666,1.985,2429.7,2429.1,4.11675106]
[1750858923938,0.2056,2429.7,2429.4,4.11614578]
[1750858924144,0.2056,2429.7,2429.6,4.11590385]
[1750858924555,11.0231,2429.9,2429.6,4.11590385]
[1750858924758,12.8025,2429.9,2429.0,4.88256722]
[1750858925058,12.8025,2429.9,2429.2,4.11649231]
[1750858925059,0.2056,2429.5,2429.2,4.11649231]
[1750858925380,0.2056,2429.4,2429.2,4.11649231]
[1750858925895,0.2056,2429.4,2429.3,4.11641213]
[1750858926078,0.2056,2429.7,2429.6,4.11581313]
[1750858926275,0.8174,2430.2,2429.9,4.11525917]
[1750858926492,0.2056,2430.1,2430.0,4.11522633]
[1750858926783,0.2056,2430.1,2429.6,1.0119]
[1750858927147,0.2056,2430.1,2430.0,4.11522633]
[1750858927359,2.7501,2430.5,2429.6,0.8063]
[1750858927592,2.9557,2430.5,2430.2,4.11478394]
[1750858927887,0.9707,2430.5,2430.4,4.11454904]
[1750858928052,0.7713,2430.8,2430.5,4.11429435]
[1750858928250,0.2056,2430.8,2430.7,4.11404122]
[1750858928452,4.11275962,2431.5,2430.9,4.11367645]
[1750858928652,4.1118421,2432.0,2430.6,10.0]
[1750858928653,4.11285679,2431.4,2430.8,4.11385576]
[1750858928877,14.11275618,2431.5,2430.6,1.985]
[1750858929071,14.11275618,2431.5,2430.9,4.11361474]
[1750858929271,0.7713,2431.6,2431.1,4.11323226]
[1750858929272,1.48840562,2431.4,2431.1,4.11323226]
[1750858929501,0.8272,2431.9,2430.8,0.8057]
[1750858929676,4.1103192,2433.0,2431.0,10.8057]
[1750858929677,4.93823312,2432.5,2431.0,10.8057]
[1750858929876,4.93823312,2432.5,2431.6,4.11242031]
[1750858929877,10.0,2432.1,2431.6,4.11242031]
[1750858930115,4.11161853,2432.2,2431.6,4.11242031]
[1750858930472,4.1120991,2431.9,2431.0,0.8057]
[1750858930672,0.41120991,2431.8,2431.1,1.985]
[1750858930914,4.11202071,2431.9,2431.3,4.11288434]
[1750858931105,4.11202071,2431.9,2431.4,4.1128402]
[1750858931302,4.11202071,2431.9,2431.0,10.8057]
[1750858931303,10.0,2432.1,2431.5,4.11268726]
[1750858931616,10.0,2432.1,2431.5,4.11265246]
[1750858931617,0.55,2431.9,2431.5,4.11265246]
[1750858931817,0.55,2431.9,2431.1,1.985]
[1750858932118,0.55,2431.9,2431.6,4.1124995]
[1750858932288,0.55,2431.9,2431.5,4.11262159]
[1750858932473,0.55,2431.9,2431.4,4.11278376]
[1750858932802,4.66210055,2431.9,2431.3,4.11294043]
[1750858933006,0.55,2431.9,2431.1,4.11336432]
[1750858933180,0.55,2431.9,2431.6,4.11241291]
[1750858933369,0.55,2431.9,2431.5,4.11261198]
[1750858933578,4.11249812,2431.7,2431.1,4.11326136]
[1750858933912,4.11235656,2431.7,2431.1,4.11323772]
[1750858934085,4.66274593,2431.5,2430.8,4.11381316]
[1750858934275,0.8064,2431.4,2431.1,4.11335003]
[1750858934607,0.8064,2431.4,2430.7,0.7717]
[1750858934781,4.91930572,2431.4,2430.8,4.11387197]
[1750858934988,4.66310946,2431.3,2430.7,4.88564331]
[1750858935286,0.55,2431.1,2430.4,0.7846]
[1750858935490,0.7669,2430.8,2430.4,4.11445699]
[1750858935999,14.92490589,2431.1,2430.1,4.11498613]
[1750858936205,0.55,2431.0,2430.5,4.11434403]
[1750858936408,0.8114,2431.1,2430.1,4.1150379]
[1750858936711,1.984,2431.2,2430.7,0.7679]
[1750858937005,1.984,2431.2,2430.9,4.11360579]
[1750858937306,0.55,2431.3,2430.9,4.11355352]
[1750858937677,0.55,2431.3,2430.8,4.11373329]
[1750858938185,0.55,2431.3,2430.9,4.11367459]
[1750858938388,0.2056,2431.1,2430.8,4.11378558]
[1750858938590,0.55,2431.3,2430.2,11.31364379]
[1750858938591,10.0,2431.3,2430.2,11.31364379]
[1750858938786,1.79025,2431.2,2430.8,4.11375864]
[1750858938976,0.55,2431.2,2430.7,4.11390681]
[1750858939409,0.55,2431.2,2430.8,4.11385607]
[1750858939712,0.55,2431.2,2430.7,4.11396047]
[1750858939881,0.55,2431.2,2430.7,4.11395575]
[1750858940282,4.66320933,2431.2,2430.5,4.11437597]
[1750858940484,0.55,2431.0,2430.5,4.11437597]
[1750858940793,0.55,2431.1,2430.7,4.11403697]
[1750858940989,0.55,2431.1,2430.3,0.32976438]
[1750858941188,0.55,2431.1,2430.3,4.44446709]
[1750858941399,0.55,2431.1,2430.2,2.8048]
[1750858941602,0.55,2431.1,2430.5,4.11430423]
[1750858941801,4.11355711,2431.0,2430.5,4.11430423]
[1750858942195,0.55,2430.9,2430.5,4.11430423]
[1750858942392,0.55,2431.1,2430.6,4.11405779]
[1750858942594,4.66339433,2431.1,2430.6,4.11405779]
[1750858942795,0.55,2431.1,2430.6,4.11405779]
[1750858943221,4.66336593,2431.1,2430.6,4.11405779]
[1750858943515,4.11356376,2431.0,2430.5,4.11429073]
[1750858943815,0.55,2430.9,2430.5,4.11431538]
[1750858944412,0.55,2430.9,2430.6,4.11420702]
[1750858944609,0.7794,2431.0,2430.8,4.11378186]
[1750858944915,4.89303522,2431.0,2430.5,4.11424483]
[1750858945291,0.55,2430.9,2430.5,4.11424483]
[1750858945694,4.66376244,2430.9,2430.4,4.11451489]
[1750858946119,4.66376244,2430.9,2430.2,4.93566232]
[1750858946120,0.55,2430.9,2430.5,4.11436531]
[1750858946515,0.55,2430.9,2430.7,4.11393548]
[1750858946894,10.7663,2431.3,2430.9,4.11360598]
[1750858947092,10.7663,2431.3,2430.8,4.11377942]
[1750858947093,14.87934015,2431.3,2430.8,4.11377942]
[1750858947393,10.7663,2431.3,2430.9,4.11368315]
[1750858947614,10.7663,2431.3,2430.8,4.11383914]
[1750858947615,14.87941143,2431.3,2430.8,4.11383914]
[1750858947815,14.87941143,2431.3,2430.9,4.11367939]
[1750858947816,11.89554041,2431.3,2430.9,4.11367939]
[1750858948141,0.7759,2431.9,2430.5,0.8004]
[1750858948316,10.0,2431.6,2430.5,0.8004]
[1750858948520,10.0,2431.6,2431.2,4.11306884]
[1750858948721,10.2056,2431.6,2431.2,4.11306884]
[1750858949026,10.2056,2431.6,2431.3,4.11293122]
[1750858949228,10.2056,2431.6,2431.1,0.2056]
[1750858949412,0.2056,2431.6,2431.3,4.11294309]
[1750858949632,0.2056,2431.6,2431.1,0.2056]
[1750858950341,0.2056,2431.3,2431.0,4.11352653]
[1750858951038,7.121,2431.6,2431.2,4.11319512]
[1750858951338,7.3266,2431.6,2431.4,4.11282919]
[1750858951538,7.3266,2431.6,2431.3,4.11294807]
[1750858951739,7.3266,2431.6,2431.5,4.11268764]
[1750858951740,0.2056,2431.6,2431.5,4.11268764]
[1750858951941,10.7759,2431.9,2431.5,4.11268764]
[1750858952140,20.57087529,2431.9,2431.6,4.11250863]
[1750858952346,24.68290136,2431.9,2431.4,4.11269819]
[1750858953044,20.57087529,2431.9,2431.5,4.11268406]
[1750858953259,9.87,2432.0,2431.7,4.11227202]
[1750858953423,7.12,2432.0,2431.1,4.11336432]
[1750858953622,7.12,2432.0,2431.6,4.11236]
[1750858953842,7.12,2432.1,2431.0,10.7853]
[1750858954032,4.11216585,2431.9,2431.3,4.11292601]
[1750858954232,4.11218283,2431.8,2431.3,4.11292601]
[1750858954544,0.55,2432.0,2431.4,4.11277624]
[1750858954740,0.55,2431.8,2431.4,4.11276453]
[1750858954918,0.8191,2431.8,2431.0,0.7853]
[1750858955118,7.12,2431.7,2431.4,4.11284321]
[1750858955423,7.12,2431.7,2431.3,4.11299188]
[1750858955625,11.2323776,2431.7,2431.2,4.11313363]
[1750858955820,4.1125191,2431.6,2431.1,4.11324406]
[1750858956020,4.11285016,2431.5,2431.0,4.11342083]
[1750858956221,4.11285016,2431.5,2430.5,4.11425323]
[1750858956222,4.11368019,2431.0,2430.5,4.11425323]
[1750858956539,4.11368019,2431.0,2430.3,4.11471834]
[1750858956540,7.119,2431.0,2430.3,4.11471834]
[1750858956742,7.119,2431.0,2430.6,4.1141009]
[1750858957048,0.55,2430.9,2430.6,4.11418061]
[1750858957419,0.55,2430.9,2430.5,4.11437262]
[1750858957620,0.55,2431.2,2430.8,4.11384451]
[1750858957843,0.55,2431.2,2430.7,4.1139709]
[1750858957844,7.119,2431.1,2430.7,4.1139709]
[1750858958239,7.119,2431.1,2430.8,4.11383836]
[1750858958542,7.119,2431.0,2430.8,4.11383836]
[1750858959350,2.532,2431.2,2430.9,4.11369375]
[1750858959351,7.119,2431.1,2430.9,4.11369375]
[1750858959764,7.668,2431.2,2430.8,4.11378599]
[1750858960358,11.78119623,2431.2,2430.7,4.11396111]
[1750858960726,7.668,2431.2,2430.8,4.11385419]
[1750858961030,7.118,2431.2,2430.8,4.11385419]
[1750858961249,7.9158,2431.3,2430.9,4.11354477]
[1750858961570,7.9158,2431.3,2430.4,0.48895183]
[1750858961765,7.668,2431.5,2430.7,4.11404122]
[1750858961946,7.668,2431.5,2431.0,4.11342273]
[1750858961947,7.118,2431.5,2431.0,4.11342273]
[1750858962260,0.2056,2431.4,2431.1,4.11336432]
[1750858962468,4.11286872,2431.4,2430.9,4.11361923]
[1750858962747,0.2056,2431.3,2430.8,0.2056]
[1750858962950,0.2056,2431.3,2430.9,4.11370274]
[1750858963646,0.2056,2431.3,2430.8,4.31941037]
[1750858963647,0.55,2431.2,2430.8,4.11373454]
[1750858963850,0.2056,2431.0,2430.8,4.11373454]
[1750858964052,0.2056,2431.0,2430.9,4.11370274]
[1750858964967,0.55,2430.9,2430.2,0.8325]
[1750858965179,0.2056,2430.8,2430.3,0.2056]
[1750858965334,0.55,2430.9,2430.5,4.1142911]
[1750858965335,0.2056,2430.7,2430.5,4.1142911]
[1750858965752,0.2056,2430.7,2430.3,4.83555588]
[1750858965960,10.2056,2430.7,2430.3,0.2056]
[1750858966163,4.31973027,2430.7,2430.3,0.2056]
[1750858966968,4.11425243,2430.6,2430.1,4.11499343]
[1750858967139,0.2056,2430.5,2430.1,4.32059343]
[1750858967555,0.2056,2430.5,2430.1,4.3205955]
[1750858967953,0.2056,2430.5,2430.2,4.11487023]
[1750858969071,0.2056,2430.5,2430.2,0.84355059]
[1750858969371,0.2056,2430.5,2429.6,10.0]
[1750858969372,10.0,2431.0,2430.8,4.11378104]
[1750858969670,0.7621,2431.3,2430.9,4.1136829]
[1750858969967,9.8611,2431.3,2430.9,4.11361909]
[1750858970164,9.8611,2431.3,2430.4,4.87289028]
[1750858970165,13.97415817,2431.3,2430.8,4.11381674]
[1750858970857,7.8791,2431.3,2430.9,4.11369034]
[1750858971057,11.9921348,2431.3,2430.8,4.11378106]
[1750858971258,12.9041518,2431.3,2430.8,4.11378106]
[1750858972667,0.7621,2431.3,2431.1,4.11320808]
[1750858972868,9.098,2431.6,2430.9,0.7941]
[1750858973075,0.751,2432.0,2431.6,4.11243931]
[1750858973370,0.751,2432.0,2431.6,4.11240652]
[1750858973371,2.733,2432.0,2431.6,4.11240652]
[1750858973566,2.733,2432.0,2431.7,4.11220372]
[1750858973766,2.733,2432.0,2431.8,4.11211431]
[1750858974067,9.098,2432.2,2431.8,4.11211515]
[1750858974268,10.49516676,2432.2,2432.0,4.11181643]
[1750858974461,10.49516676,2432.2,2431.9,4.11191405]
[1750858974658,10.0,2432.1,2431.8,4.11207107]
[1750858974867,3.37916676,2432.2,2431.8,4.11207107]
[1750858975172,0.7624,2432.3,2431.6,4.1125185]
[1750858975469,21.98888678,2432.3,2431.7,4.11218408]
[1750858975673,0.55,2432.1,2431.4,4.90689724]
[1750858975860,0.55,2432.1,2431.6,4.11251421]
[1750858976051,0.46616199,2432.0,2431.4,0.7941]
[1750858976372,0.55,2432.2,2431.8,4.11211663]
[1750858976571,10.0,2432.1,2431.4,0.7941]
[1750858976775,4.66184872,2432.0,2431.3,4.11297103]
[1750858977072,0.55,2431.9,2431.5,4.11265664]
[1750858977370,0.55,2431.9,2431.4,4.11278302]
[1750858977574,1.17759654,2431.8,2431.4,4.11278302]
[1750858977879,1.96049654,2431.8,2431.4,4.11278302]
[1750858978558,6.07268923,2431.8,2431.3,4.11295791]
[1750858978953,0.7798,2432.2,2431.7,4.1122023]
[1750858979165,0.2056,2431.8,2431.6,4.11251542]
[1750858979473,0.2056,2431.8,2431.6,4.11243516]
[1750858980246,0.2056,2431.8,2431.7,4.11234938]
[1750858980576,0.2048,2432.0,2431.8,4.11217606]
[1750858980885,0.2048,2432.0,2431.6,4.11241011]
[1750858981185,0.2048,2432.0,2431.7,4.11230131]
[1750858981472,0.2048,2432.0,2431.7,4.11227112]
[1750858981680,0.2048,2432.0,2431.8,4.11208089]
[1750858982393,4.11104193,2432.5,2431.7,0.7986]
[1750858982394,9.09,2432.4,2431.7,0.7986]
[1750858982681,9.09,2432.4,2431.8,4.11203757]
[1750858982682,0.2048,2432.1,2431.8,4.11203757]
[1750858982990,0.2048,2432.1,2431.9,4.11198725]
[1750858983155,0.2048,2432.1,2431.8,4.11205178]
[1750858983550,0.2048,2432.1,2431.9,4.11200707]
[1750858983750,0.2048,2432.1,2431.7,4.11219987]
[1750858984051,0.2048,2432.1,2431.9,4.11198397]
[1750858984674,0.2048,2432.1,2432.0,4.1118421]
[1750858984877,10.0,2432.3,2432.0,4.1118421]
[1750858985078,10.0,2432.3,2432.1,4.11163549]
[1750858985382,10.0,2432.3,2431.5,4.11256679]
[1750858985678,10.0,2432.3,2431.6,0.49111668]
[1750858985854,10.0,2432.3,2431.4,0.7986]
[1750858986181,10.0,2432.3,2432.1,4.11155165]
[1750858986698,10.0,2432.3,2432.2,4.11150398]
[1750858987273,2.7767,2432.4,2432.2,4.11150398]
[1750858987472,10.0,2432.6,2432.3,4.11133495]
[1750858987781,10.6658,2432.7,2432.3,0.41113349]
[1750858987981,1.978,2432.9,2432.6,4.11071402]
[1750858988181,0.7968,2433.1,2432.3,0.41113349]
[1750858988381,0.7968,2433.1,2432.9,4.11024341]
[1750858988891,4.90679759,2433.1,2432.5,4.11086449]
[1750858989187,0.7968,2433.1,2432.4,4.11116592]
[1750858989484,0.7968,2433.1,2432.0,4.11183893]
[1750858989485,0.55,2432.8,2431.9,0.8187]
[1750858989684,0.55,2432.8,2432.3,4.11123648]
[1750858989891,7.108,2433.0,2432.3,4.11133173]
[1750858990096,0.7968,2433.1,2432.8,4.1103596]
[1750858990310,10.0,2433.0,2432.5,4.91143368]
[1750858990595,4.66031772,2433.0,2432.3,4.11128447]
[1750858990767,0.55,2433.0,2432.5,4.11096552]
[1750858990972,4.88085256,2433.4,2432.8,4.11040564]
[1750858991304,10.0,2433.3,2432.9,4.11027384]
[1750858991465,10.0,2433.3,2432.8,4.11039997]
[1750858991466,4.10967687,2433.3,2432.8,4.11039997]
[1750858991866,14.88086258,2433.4,2432.9,4.11029661]
[1750858992166,10.7713,2433.4,2433.0,4.10998454]
[1750858992371,4.10989194,2433.2,2432.7,4.1105715]
[1750858992592,4.10970576,2433.3,2432.8,4.11046039]
[1750858992794,0.55,2433.2,2432.7,4.11065398]
[1750858992959,4.10992041,2433.2,2432.2,9.8953]
[1750858993164,0.55,2433.1,2432.7,4.11065561]
[1750858993497,0.55,2433.1,2432.2,9.8953]
[1750858993498,0.55,2433.2,2432.8,4.11048816]
[1750858993799,10.55,2433.3,2432.9,4.11022249]
[1750858994000,0.7713,2433.4,2433.1,4.10988674]
[1750858994164,10.7713,2433.4,2432.7,0.8113]
[1750858994504,0.7713,2433.4,2433.1,4.10997162]
[1750858994725,0.7713,2433.4,2433.0,4.11014465]
[1750858994882,0.9761,2433.4,2433.0,0.41101446]
[1750858995084,0.9761,2433.4,2433.0,4.1100465]
[1750858995304,0.9761,2433.4,2433.2,4.10978674]
[1750858995519,4.87176749,2434.0,2433.5,4.10920063]
[1750858995824,0.7633,2434.0,2433.3,4.10964533]
[1750858995995,4.32193644,2434.7,2433.1,4.10992896]
[1750858995996,0.7633,2434.3,2433.9,4.1085527]
[1750858996328,0.7633,2434.7,2434.0,4.10846343]
[1750858996503,4.10754755,2434.6,2434.0,4.10846343]
[1750858996692,4.87068457,2434.7,2434.0,4.10846343]
[1750858996893,4.10747155,2434.6,2434.0,4.10846343]
[1750858997122,4.87066852,2434.7,2434.0,4.10846343]
[1750858997332,0.7633,2434.7,2434.0,4.10846343]
[1750858997698,4.10753407,2434.6,2433.7,2.8072]
[1750858997894,1.3133,2434.7,2434.0,4.10846343]
[1750858998199,4.10750157,2434.6,2434.0,4.10846343]
[1750858998531,0.7633,2434.7,2434.0,4.10846343]
[1750858998735,4.10702899,2434.9,2434.0,4.93866343]
[1750858999035,0.7633,2435.0,2434.0,4.93866343]
[1750858999402,4.10734548,2434.7,2434.0,14.01866343]